[Event "4NCL Div 1 2024-25"]
[Site "England"]
[Date "2025.01.26"]
[Round "4.37"]
[White "Maycock Bates, David Henry"]
[Black "Shafi, Declan"]
[Result "1-0"]
[Annotator "TA"]
[ECO "C90"]
[WhiteElo "2290"]
[BlackElo "2181"]
[PlyCount "45"]
[EventDate "2024.11.23"]
[EventType "team-tourn"]
[EventCountry "ENG"]
[SourceTitle "playchess.com"]
[Source "ChessBase"]
[SourceQuality "1"]
[TimeControl "40/6000+30:3000+30"]

{[%evp 20,45,23,23,46,24,29,14,22,8,35,47,43,39,59,61,150,117,320,322,636,603,1011,991,1285,1270,1255,1239]} 1. e4 {[%emt 0:20:57]} e5 {[%emt 0:10:03]} 2. Nf3 {[%emt 0:00:08]} Nc6 {[%emt 0:00:04]} 3. Bb5 {[%emt 0:00:08][%cal Bf1b5,Bb5a4,Ba4b3,Bb3c2][%mdl 32]} a6 {[%emt 0:00:06]} 4. Ba4 {[%emt 0:00:05]} Nf6 {[%emt 0:00:06]} 5. O-O {[%emt 0:00:10]} Be7 {[%emt 0:00:05]} 6. Re1 {[%emt 0:00:09]} b5 {[%emt 0:00:05]} 7. Bb3 {[%emt 0:00:05]} d6 {[%emt 0:00:07]} 8. c3 {[%emt 0:00:07]} Na5 {[%emt 0:00:15]} 9. Bc2 {[%emt 0:00:14]} c5 {[%emt 0:00:05]} 10. h3 {[%emt 0:11:06]} Qc7 {[%emt 0:00:05]} 11. d4 {[%emt 0:01:02]} Bd7 {[%emt 0:00:07] C90: Closed Ruy Lopez with 7...d6: Early deviations.} 12. b3 {[%emt 0:14:47]} cxd4 {[%emt 0:04:19]} 13. cxd4 {[%emt 0:00:11]} Rc8 {[%emt 0:00:24] The position is equal.} 14. Re2 $146 {[%emt 0:12:31]} (14. Bd3 Nc6 15. Bb2 O-O 16. Nbd2 exd4 17. Nxd4 Nxd4 18. Bxd4 Rfd8 19. Nf1 Bc6 20. Ng3 g6 21. Qf3 Nd7 22. Nf5 Bf6 23. Bxf6 Nxf6 24. Nd4 Qe7 25. Nxc6 Rxc6 26. e5 dxe5 27. Qxc6 Rxd3 28. Qxa6 Nh5 29. Qxb5 {1-0 Pirisi,G (2290)-Frydendal,O EU-chT Railways USIC 10th 1980 (2.5)}) 14... O-O {[%emt 0:06:44]} 15. Bb2 {[%emt 0:02:25][%cal Rd4e5]} Nc6 {[%emt 0:01:33]} 16. Nc3 {[%emt 0:01:23]} exd4 {[%emt 0:19:55]} 17. Nxd4 {[%emt 0:07:55]} b4 {[%emt 0:02:04]} (17... Rfe8 $14) 18. Nd5 $16 {[%emt 0:09:44]} Nxd5 {[%emt 0:00:45] A mistake that costs the game.} (18... Qd8 $16 {was necessary.}) 19. exd5 $18 {[%emt 0:02:29]} Nxd4 {[%emt 0:00:43]} (19... Ne5 20. f4 f5) 20. Qxd4 {[%emt 0:01:11][%csl Gb2][%cal Rd4g7] White is clearly winning.} (20. Rxe7 $2 {loses.} Nxc2 21. Rc1 f6 22. Rxd7 Qxd7 $19) ({Not} 20. Bxd4 Bb5 $14) 20... Bf6 {[%emt 0:09:17] [#]} 21. Qd3 {[%emt 0:00:50][%csl Gc2][%cal Rd3h7]} g6 {[%emt 0:02:24]} (21... Qxc2 22. Rxc2) 22. Bxf6 {[%emt 0:00:09]} Bb5 {[%emt 0:00:54] [#]} 23. Qe3 $1 {[%emt 0:02:52] Weighted Error Value: White=0.05 (flawless) /Black=1.40  Loses game:     	---       	Black=1      Mistake:       	---       	Black=2      Inaccurate:     	---       	Black=2      OK:         	White=2     	Black=3      Best:        	White=1     	---} 1-0

[Event "4NCL Div 1 2024-25"]
[Site "England"]
[Date "2025.01.26"]
[Round "4.38"]
[White "McKay, Roderick M"]
[Black "Bezuidenhout, Roland"]
[Result "0-1"]
[Annotator "TA"]
[ECO "D37"]
[WhiteElo "2177"]
[BlackElo "2285"]
[PlyCount "62"]
[EventDate "2024.11.23"]
[EventType "team-tourn"]
[EventCountry "ENG"]
[SourceTitle "playchess.com"]
[Source "ChessBase"]
[SourceQuality "1"]
[TimeControl "40/6000+30:3000+30"]

{[%evp 9,62,22,29,21,26,28,29,29,29,26,29,0,0,-6,-12,-10,-14,-2,5,2,17,20,34,0,0,0,29,12,15,0,0,0,0,0,0,-44,0,-35,-8,-148,-151,-172,-127,-245,-245,-260,-260,-244,-259,-371,-381,-918,-904,-29993,-29994]} 1. d4 {[%emt 0:10:32]} Nf6 {[%emt 0:10:58]} 2. Nf3 {[%emt 0:00:17]} d5 {[%emt 0:01:35]} 3. c4 {[%emt 0:03:04]} e6 {[%emt 0:00:14]} 4. Nc3 {[%emt 0:00:10]} a6 {[%emt 0:03:51]} 5. cxd5 {[%emt 0:00:36]} exd5 {[%emt 0:00:11]} 6. Bg5 {[%emt 0:00:12] D37: Queen's Gambit Declined: 5 Bf4.} c6 {[%emt 0:03:42]} 7. Qc2 {[%emt 0:00:16]} Be6 {[%emt 0:00:47]} 8. e3 {[%emt 0:00:36] White has an edge.} Nbd7 {[%emt 0:00:15]} 9. Bd3 {[%emt 0:01:25]} Bd6 {[%emt 0:02:43]} 10. O-O {[%emt 0:02:50]} Qc7 {[%emt 0:00:13]} 11. h3 {[%emt 0:02:20]} h6 {[%emt 0:00:14]} 12. Bxf6 {[%emt 0:00:45]} Nxf6 {[%emt 0:00:19]} 13. Rab1 {[%emt 0:00:49]} Qd7 $146 {[%emt 0:05:43]} (13... g5 14. Bf5 Qd7 15. Bxe6 Qxe6 16. Nh2 Bxh2+ 17. Kxh2 g4 18. e4 dxe4 19. Rfe1 O-O-O 20. Nxe4 gxh3 {0-1 Volkov,M (2246)-Ibarra Jerez,J (2570) Titled Tuesday intern op 09th Aug Early blitz 2022 (6)}) 14. Ne5 {[%emt 0:01:33]} Qc7 {[%emt 0:18:44]} 15. f4 {[%emt 0:00:34]} c5 {[%emt 0:16:59]} 16. Rbc1 {[%emt 0:03:14]} O-O {[%emt 0:11:33]} 17. Qd2 {[%emt 0:07:26]} cxd4 {[%emt 0:03:12]} 18. exd4 {[%emt 0:03:57][%cal Oc3d5]} (18. Nxd5 {seems wilder.} Nxd5 19. Rxc7 dxe3 20. Bh7+) 18... Qb6 {[%emt 0:00:11]} 19. Bb1 {[%emt 0:02:25]} Rad8 {[%emt 0:02:51][%cal Of6e4]} 20. Na4 {[%emt 0:06:14] A dynamic duo of knights.} Qb5 {[%emt 0:02:27]} 21. Nc5 {[%emt 0:04:24]} Ne4 {[%emt 0:04:25]} 22. Qe3 {[%emt 0:05:00]} Qxb2 {[%emt 0:04:53]} 23. Bxe4 {[%emt 0:12:52]} dxe4 {[%emt 0:00:03]} 24. Rb1 {[%emt 0:00:38] [#]} (24. Nxe6 $11 {remains equal.} fxe6 25. Qxe4) 24... Bxc5 $1 $17 {[%emt 0:02:01]} 25. dxc5 {[%emt 0:00:19]} (25. Rxb2 Bxd4) 25... Qxa2 {[%emt 0:01:36]} 26. Qg3 {[%emt 0:06:07]} (26. Rxb7 $17 Rd2 27. Rf2 Rd1+ 28. Kh2) 26... Rd2 $19 {[%emt 0:04:41]} 27. f5 {[%emt 0:03:32] [#]} Bxf5 {[%emt 0:00:25][%cal Oe4e3][%mdl 512]} 28. Rxb7 {[%emt 0:07:22]} Qd5 {[%emt 0:00:24][%csl LRb7,LRc5]} 29. c6 {[%emt 0:01:05]} (29. Rc7 {keeps fighting.} Be6 30. Kh2) 29... e3 {[%emt 0:04:28] and ...e2 would now be decisive} 30. Rxf5 $2 {[%emt 0:08:00]} (30. Re1 Be4 (30... Re8 31. Nxf7 Qxc6 32. Nd6 $11) 31. Nf3) 30... e2 {[%emt 0:00:02]} 31. Nxf7 {[%emt 0:00:35]} e1=Q+ {[%emt 0:00:14] Weighted Error Value: White=0.80/Black=0.06 (flawless)   Mistake:       	White=4     	---        Inaccurate:     	White=5     	Black=3      OK:         	White=8     	Black=11     Best:        	White=1     	Black=1      Strong:       	---       	Black=1} ({Inferior is} 31... Qxf5 32. Nxh6+ Kh8 33. Qxg7#) 0-1

[Event "4NCL Div 1 2024-25"]
[Site "England"]
[Date "2025.01.26"]
[Round "4.39"]
[White "Jarocka, Liwia"]
[Black "Berry, Neil"]
[Result "1/2-1/2"]
[Annotator "TA"]
[ECO "E40"]
[WhiteElo "2267"]
[BlackElo "2248"]
[PlyCount "86"]
[EventDate "2024.11.23"]
[EventType "team-tourn"]
[EventCountry "ENG"]
[SourceTitle "playchess.com"]
[Source "ChessBase"]
[SourceQuality "1"]
[TimeControl "40/6000+30:3000+30"]

{[%evp 13,86,-12,-12,-14,-8,-75,-43,-46,-43,-55,0,0,0,-25,-25,-18,-20,-28,-22,-12,-9,-45,-47,-43,-40,-39,-34,-31,-26,-30,-45,-67,-48,-60,-45,-66,-65,-82,-25,-60,-16,-12,-13,-18,0,0,0,0,0,0,0,0,0,0,0,0,0,0,0,0,0,0,0,0,0,0,0,0,0,0,0,0,0,0,0]} 1. d4 {[%emt 0:10:02]} Nf6 {[%emt 0:15:38]} 2. c4 {[%emt 0:00:08]} e6 {[%emt 0:00:11]} 3. Nc3 {[%emt 0:00:10]} Bb4 {[%emt 0:00:35]} 4. e3 {[%emt 0:00:26]} O-O {[%emt 0:00:45]} 5. a3 {[%emt 0:00:07]} Bxc3+ {[%emt 0:01:15]} 6. bxc3 {[%emt 0:00:02]} Nc6 {[%emt 0:00:23]} 7. Bd3 {[%emt 0:01:29]} e5 {[%emt 0:00:57]} 8. Ne2 {[%emt 0:04:40]} e4 {[%emt 0:01:11]} 9. Bb1 {[%emt 0:00:49]} (9. Bc2 $11) 9... b6 {[%emt 0:04:43]} 10. Ng3 {[%emt 0:02:15] Black is slightly better.} Ba6 {[%emt 0:05:12]} 11. Nxe4 {[%emt 0:01:01]} Nxe4 {[%emt 0:01:34]} (11... Bxc4 $15 12. Nd2 Ba6) 12. Bxe4 $11 {[%emt 0:00:26]} Bxc4 {[%emt 0:00:16]} 13. Bd3 {[%emt 0:07:00]} Bxd3 {[%emt 0:16:37]} 14. Qxd3 {[%emt 0:00:07]} d5 {[%emt 0:00:21]} 15. c4 {[%emt 0:08:25]} dxc4 {[%emt 0:06:38]} 16. Qxc4 {[%emt 0:00:08]} Na5 {[%emt 0:00:29]} 17. Qa4 {[%emt 0:12:39]} c5 {[%emt 0:05:27]} 18. O-O {[%emt 0:06:32]} cxd4 {[%emt 0:20:14]} 19. exd4 {[%emt 0:01:16]} Rc8 {[%emt 0:01:47]} 20. Be3 {[%emt 0:04:36]} Qd5 {[%emt 0:03:45]} 21. Rac1 {[%emt 0:04:51]} h6 {[%emt 0:01:19]} 22. Qd1 {[%emt 0:11:19][%cal Oe3h6]} Rc4 {[%emt 0:02:05]} (22... Rxc1 {simplifies} 23. Qxc1 Nc4 24. Re1 Rc8) 23. Qg4 {[%emt 0:01:43]} f5 {[%emt 0:03:31]} 24. Qg6 {[%emt 0:03:14]} f4 {[%emt 0:04:45]} 25. Bd2 {[%emt 0:00:29]} Rc6 {[%emt 0:01:47]} (25... Qf5 $17 26. Qxf5 Rxf5) 26. Qg4 {[%emt 0:06:14]} Rxc1 {[%emt 0:07:33]} 27. Rxc1 {[%emt 0:00:59] The position is equal.} Nc6 {[%emt 0:02:19]} 28. Bxf4 {[%emt 0:04:09]} h5 {[%emt 0:00:12]} 29. Qg5 {[%emt 0:06:42]} (29. Qg6 {is more complex.} Nxd4 30. Bh6 Qd7 31. Kf1) 29... Qxg5 {[%emt 0:00:59]} (29... Rf5 $5 30. Qg6 $8 Rxf4 31. Rxc6 Qxd4 32. Qe8+ (32. Qxh5 $2 {gets mated.} Qxf2+ 33. Kh1 Qf1#) 32... Rf8 $11) 30. Bxg5 {[%emt 0:00:04]} Nxd4 {[%emt 0:00:08][%mdl 4096] Endgame. KRB-KRN} 31. Kf1 {[%emt 0:00:31] Wards off Ne2} Rf5 {[%emt 0:00:37]} 32. Rc8+ {[%emt 0:03:08]} Kh7 {[%emt 0:00:04]} 33. Be3 {[%emt 0:00:06]} Rd5 {[%emt 0:01:16]} 34. a4 {[%emt 0:02:55]} Nf5 {[%emt 0:00:48]} 35. Ke2 {[%emt 0:03:18]} Nxe3 {[%emt 0:00:17]} 36. fxe3 {[%emt 0:00:44] KR-KR} Ra5 {[%emt 0:00:51]} 37. Rc4 {[%emt 0:00:06]} Kg6 {[%emt 0:00:38]} 38. h4 {[%emt 0:02:45]} Kf5 {[%emt 0:00:27]} 39. Kf3 {[%emt 0:00:39]} Ke5 {[%emt 0:00:31]} 40. g4 {[%emt 0:00:07]} hxg4+ {[%emt 0:00:33]} 41. Rxg4 {[%emt 0:50:05]} Kf6 {[%emt 0:50:36] Repels Rg5} 42. Rc4 {[%emt 0:00:11]} Ke5 {[%emt 0:00:00]} 43. Rg4 {[%emt 0:00:00]} Kf6 {[%emt 0:00:00] Prevents Rg5.   Weighted Error Value: White=0.11 (very precise) /Black=0.09 (flawless) .  Mistake:       	White=1     	Black=2      Inaccurate:     	White=2     	Black=2      OK:         	White=15    	Black=19     Best:        	---       	Black=1} 1/2-1/2

[Event "4NCL Div 1 2024-25"]
[Site "England"]
[Date "2025.01.26"]
[Round "4.40"]
[White "Patel, Zain"]
[Black "Banerjee, Supratit"]
[Result "0-1"]
[Annotator "TA"]
[ECO "A49"]
[WhiteElo "2083"]
[BlackElo "2141"]
[PlyCount "98"]
[EventDate "2024.11.23"]
[EventType "team-tourn"]
[EventCountry "ENG"]
[SourceTitle "playchess.com"]
[Source "ChessBase"]
[SourceQuality "1"]
[TimeControl "40/6000+30:3000+30"]

{[%evp 13,98,38,41,47,69,82,83,71,78,46,85,14,14,8,12,7,54,29,69,78,58,26,23,32,41,18,43,32,74,-8,-20,-26,-32,-33,-12,-180,-172,-278,-283,-275,-268,-402,-395,-397,-387,-413,-404,-404,-384,-373,-372,-320,-254,-248,-268,-423,-417,-508,-532,-518,-532,-819,-783,-756,-558,-520,-495,-670,-673,-672,-665,-957,-705,-746,-579,-1442,-1359,-2642,-2437,-29977,-29978,-29978,-29979,-29979,-29980,-29980,-29981]} 1. Nf3 {[%emt 1:41:00]} Nf6 {[%emt 1:41:00]} 2. b3 {[%emt 0:00:30]} g6 {[%emt 0:00:30]} 3. Bb2 {[%emt 0:00:30]} Bg7 {[%emt 0:00:30]} 4. g3 {[%emt 0:00:30]} O-O {[%emt 0:00:30]} 5. Bg2 {[%emt 0:00:30]} d6 {[%emt 0:00:30]} 6. d4 {[%emt 0:00:30]} c6 {[%emt 0:00:30]} 7. O-O {[%emt 0:00:30]} Bf5 {[%emt 0:00:30]} 8. Nh4 {[%emt 0:00:30] A49: 1 d4 Nf6 2 Nf3 g6 3 g3: Anti-King's Indian systems.} Be6 {[%emt 0:00:30]} 9. e4 {[%emt 0:00:30]} Qc8 {[%emt 0:00:30]} 10. Re1 {[%emt 0:00:30] White is better.} Ne8 $146 {[%emt 0:00:30]} (10... Bh3 11. Bh1 Re8 12. Nd2 Nbd7 13. Rb1 Nf8 14. Qe2 h6 15. e5 dxe5 16. dxe5 Nd5 {0-1 Lys,J (2204)-Walek,M (2329) CZE-chT 1415 2014 (9.4)}) 11. Qc1 {[%emt 0:00:30]} d5 {[%emt 0:00:30]} 12. exd5 {[%emt 0:00:30]} ({White should try} 12. Nd2 $16) 12... cxd5 $11 {[%emt 0:00:30]} 13. Nf3 {[%emt 0:00:30]} Nc6 {[%emt 0:00:30]} 14. Nc3 {[%emt 0:00:30]} h6 {[%emt 0:00:30]} (14... Nc7 $11 {deserves consideration.}) 15. Ne2 {[%emt 0:00:30] next Nf4 is good for White.} Nf6 {[%emt 0:00:30]} 16. Nf4 {[%emt 0:00:30]} Bf5 {[%emt 0:00:30]} 17. Ne5 {[%emt 0:00:30]} Nb4 {[%emt 0:00:30]} 18. Qd2 {[%emt 0:00:30]} a5 {[%emt 0:00:30]} 19. Ba3 {[%emt 0:00:30]} (19. Rec1 {simplifies} g5 20. Nfd3 Nxd3 21. cxd3 Qd8 22. Rc5) 19... Ne4 {[%emt 0:00:30]} 20. Bxe4 {[%emt 0:00:30]} Bxe4 {[%emt 0:00:30]} 21. Bxb4 {[%emt 0:00:30]} (21. c4 $16) 21... axb4 {[%emt 0:00:30]} 22. Re3 {[%emt 0:00:30]} g5 {[%emt 0:00:30]} (22... Bxc2 $2 23. Rc1 (23. Nxd5 Qd8 $11) 23... Rxa2 24. Re2 $18) 23. Nfd3 {[%emt 0:00:30]} f6 {[%emt 0:00:30]} 24. Nf3 {[%emt 0:00:30] [#] White does not recover from this.} (24. f3 $1 $11) 24... f5 $1 $36 {[%emt 0:00:30][%mdl 2048] Keeping White busy.} 25. Nxb4 {[%emt 0:00:30]} (25. Qe2 $142) 25... f4 {[%emt 0:00:30]} 26. Rc3 {[%emt 0:00:30]} Qf5 {[%emt 0:00:30]} 27. Ne5 {[%emt 0:00:30]} (27. Ne1) 27... Bxe5 {[%emt 0:00:30]} 28. dxe5 {[%emt 0:00:30]} Qh3 {[%emt 0:00:30][%csl Ge4][%cal Rh3g2]} (28... Qxe5 29. Re1 $17) 29. f3 {[%emt 0:00:30]} fxg3 {[%emt 0:00:30]} 30. Qg2 {[%emt 0:00:30]} (30. fxe4 $2 Rf2 $19) 30... gxh2+ {[%emt 0:00:30]} 31. Qxh2 {[%emt 0:00:30]} Qxh2+ {[%emt 0:00:30]} 32. Kxh2 {[%emt 0:00:30]} Rxf3 {[%emt 0:00:30]} 33. Rxf3 {[%emt 0:00:30]} Bxf3 {[%emt 0:00:30][%mdl 4096] Endgame KRB-KRN. Black is a pawn up.} 34. Nd3 {[%emt 0:00:30]} (34. Rf1 {only move.} Be4 35. Kg1) 34... Rc8 {[%emt 0:00:30]} 35. Rc1 {[%emt 0:00:30]} Be4 {[%emt 0:00:30]} 36. Nb4 {[%emt 0:00:30]} Rc3 {[%emt 0:00:30]} 37. e6 {[%emt 0:00:30]} g4 {[%emt 0:00:30]} 38. Kg1 {[%emt 0:00:30]} Rg3+ {[%emt 0:00:30]} 39. Kf2 {[%emt 0:00:30]} Rf3+ {[%emt 0:00:30]} 40. Ke2 {[%emt 0:00:30]} h5 {[%emt 0:00:30]} 41. Rd1 {[%emt 0:50:30]} Rf5 {[%emt 0:50:30]} 42. Ke3 {[%emt 0:00:30]} h4 {[%emt 0:00:30]} 43. c4 {[%emt 0:00:30]} Bf3 {[%emt 0:00:30]} 44. Rd4 {[%emt 0:00:30]} dxc4 {[%emt 0:00:30]} 45. bxc4 {[%emt 0:00:30]} h3 {[%emt 0:00:30] aiming for ...h2.} 46. Nd5 {[%emt 0:00:30] [#]} Rxd5 $1 {[%emt 0:00:30] Black mates.} 47. cxd5 {[%emt 0:00:30]} h2 {[%emt 0:00:30]} 48. d6 {[%emt 0:00:30]} exd6 {[%emt 0:00:30]} (48... h1=R $2 49. d7 Re1+ 50. Kf4 Rxe6 51. d8=Q+ $18) 49. e7 {[%emt 0:00:30]} Kf7 {[%emt 0:00:30] Weighted Error Value: White=0.94/Black=0.22 (precise)   Loses game:     	White=1     	---        Mistake:       	White=5     	Black=1      Inaccurate:     	White=5     	Black=3      OK:         	White=9     	Black=11     Best:        	White=2     	Black=3      Strong:       	---       	Black=1} (49... h1=R 50. e8=Q+ Kg7 51. Qd7+ (51. Rxd6 $2 {perishes.} Re1+ 52. Kf4 Rxe8 $19) 51... Kg8 52. Rxd6 (52. Rxg4+ Bxg4 53. Qxg4+ Kf7 $18) 52... Re1+ 53. Kf4 Re4+ 54. Kf5) 0-1

[Event "4NCL Div 1 2024-25"]
[Site "England"]
[Date "2025.01.26"]
[Round "4.41"]
[White "Parker, Jonathan F"]
[Black "Kovchan, Alexander"]
[Result "1/2-1/2"]
[Annotator "TA"]
[ECO "D94"]
[WhiteElo "2523"]
[BlackElo "2453"]
[PlyCount "35"]
[EventDate "2024.11.23"]
[EventType "team-tourn"]
[EventCountry "ENG"]
[SourceTitle "playchess.com"]
[Source "ChessBase"]
[SourceQuality "1"]
[TimeControl "40/6000+30:3000+30"]

{[%evp 22,35,6,-9,0,0,10,-24,0,0,0,0,0,0,14,8]} 1. d4 {[%emt 0:12:28]} Nf6 {[%emt 0:10:08]} 2. c4 {[%emt 0:00:06]} g6 {[%emt 0:00:06]} 3. Nc3 {[%emt 0:00:11]} d5 {[%emt 0:00:07]} 4. Nf3 {[%emt 0:00:17]} Bg7 {[%emt 0:00:07]} 5. e3 {[%emt 0:00:35]} O-O {[%emt 0:00:26]} 6. cxd5 {[%emt 0:00:14]} Nxd5 {[%emt 0:00:08]} 7. Bc4 {[%emt 0:00:07]} Nb6 {[%emt 0:01:06]} 8. Bb3 {[%emt 0:00:05]} c5 {[%emt 0:00:05]} 9. O-O {[%emt 0:00:12]} cxd4 {[%emt 0:00:22]} 10. exd4 {[%emt 0:00:06]} Nc6 {[%emt 0:01:13]} 11. d5 {[%emt 0:00:55]} Na5 {[%emt 0:00:09]} 12. Re1 {[%emt 0:00:51] 12.h3 is the modern continuation.} Nxb3 {[%emt 0:02:28] D94: Grünfeld: 4 Nf3 Bg7 5 e3.} 13. Qxb3 {[%emt 0:21:15]} Re8 {[%emt 0:04:01]} 14. Bg5 {[%emt 0:04:06][%cal Bc1g5,Bg5h4,Bh4g3][%mdl 32]} h6 $146 {[%emt 0:08:22]} (14... Bg4 15. Rad1 Bxf3 16. gxf3 Qd7 17. Qb4 h6 18. Be3 Rac8 19. Bxb6 axb6 20. Re3 Bxc3 21. bxc3 Rc5 22. Qe4 Qd6 23. Rd4 h5 24. f4 Qd7 25. Rg3 h4 26. Rxg6+ {½-½ Marusenko,P (2327)-Demkovich,A (2422) Kiev Independence Cup-A 3rd 2003 (10)}) 15. Bh4 {[%emt 0:00:09] The position is equal.} g5 {[%emt 0:20:55]} 16. Bg3 {[%emt 0:00:05]} Bxc3 $1 {[%emt 0:01:27]} 17. Qxc3 {[%emt 0:00:34]} Qxd5 {[%emt 0:00:06]} 18. Rad1 {[%emt 0:26:24] An uneventful encounter.   Weighted Error Value: White=0.13 (very precise) /Black=0.10 (very precise)   Inaccurate:     	White=1     	---        OK:         	White=2     	---        Strong:       	---       	Black=1} 1/2-1/2

[Event "4NCL Div 1 2024-25"]
[Site "England"]
[Date "2025.01.26"]
[Round "4.42"]
[White "Badacsonyi, Stanley"]
[Black "Merry, Alan B"]
[Result "1-0"]
[Annotator "TA"]
[ECO "E52"]
[WhiteElo "2298"]
[BlackElo "2417"]
[PlyCount "93"]
[EventDate "2024.11.23"]
[EventType "team-tourn"]
[EventCountry "ENG"]
[SourceTitle "playchess.com"]
[Source "ChessBase"]
[SourceQuality "1"]
[TimeControl "40/6000+30:3000+30"]

{[%evp 19,92,-24,8,18,8,15,25,-11,6,7,12,0,-13,-6,-7,-32,-21,-70,-81,-86,-74,-337,-321,-308,-270,-363,-340,-451,-418,-535,-526,-545,-445,-482,-503,-521,-507,-620,-475,-476,-335,-369,-353,-346,-43,-46,0,0,329,-128,-129,-136,-139,-145,-161,-141,-178,-247,29987,29988,29988,29989,29989,29990,29993,29994,29994,29995,29995,29996,29996,29997,29997,29998,29999]} 1. d4 {[%emt 0:10:01]} Nf6 {[%emt 0:10:05]} 2. c4 {[%emt 0:00:07]} e6 {[%emt 0:00:04]} 3. Nc3 {[%emt 0:00:13]} Bb4 {[%emt 0:00:04]} 4. e3 {[%emt 0:00:06]} O-O {[%emt 0:00:05]} 5. Bd2 {[%emt 0:00:02]} d5 {[%emt 0:00:12]} 6. Nf3 {[%emt 0:00:03]} b6 {[%emt 0:00:21]} 7. cxd5 {[%emt 0:00:04]} exd5 {[%emt 0:00:03]} 8. Bd3 {[%emt 0:00:05]} Bb7 {[%emt 0:01:41]} 9. O-O {[%emt 0:00:07]} Bd6 {[%emt 0:00:43]} 10. Rc1 {[%emt 0:01:34]} a6 {[%emt 0:00:07]} 11. Ne5 {[%emt 0:00:12] E52: Nimzo-Indian: Rubinstein: 4...0-0 5 Nf3 d5 6 Bd3 b6.} c5 {[%emt 0:00:24]} 12. f4 {[%emt 0:01:11]} Nc6 {[%emt 0:00:05]} 13. Ne2 {[%emt 0:10:20] White has an edge.} c4 {[%emt 0:00:05]} 14. Bb1 {[%emt 0:00:16]} b5 {[%emt 0:07:43]} 15. Ng3 {[%emt 0:02:22]} Ne7 {[%emt 0:00:06]} 16. Qf3 {[%emt 0:01:19] Prevents Ne4} (16. Nh5 Ne8 17. Qf3 g6 18. Qg4) 16... a5 $146 {[%emt 0:09:49]} (16... Rc8 17. Nf5 Ne4 18. Nxd6 Qxd6 19. Bxe4 dxe4 20. Qh3 f6 21. Ng4 b4 22. Nf2 a5 {0-1 Ponkratov,P (2628)-Zhigalko,S (2572) Speed Chess Super Swiss blitz 2020 (8)}) 17. Be1 {[%emt 0:08:20]} Ra6 {[%emt 0:05:42]} (17... Qc8 {looks sharper.} 18. Nh5 Ne8 19. Bh4 f6) 18. a4 {[%emt 0:04:46]} bxa4 $15 {[%emt 0:12:31]} 19. Nxc4 {[%emt 0:01:42]} Rc6 {[%emt 0:07:26]} 20. Ne2 $2 {[%emt 0:20:33][%mdl 8192]} dxc4 $19 {[%emt 0:01:04]} (20... Rxc4 21. Rxc4 dxc4 22. Qxb7 $17) 21. e4 {[%emt 0:00:02]} Rc8 {[%emt 0:09:29]} 22. g4 {[%emt 0:06:46]} h6 {[%emt 0:12:07]} 23. Ng3 {[%emt 0:06:27]} Qb6 {[%emt 0:08:50]} 24. Bf2 {[%emt 0:01:25]} Qxb2 {[%emt 0:03:31]} 25. Be3 {[%emt 0:01:50]} Ng6 {[%emt 0:04:09]} 26. Nf5 {[%emt 0:00:10] Prevents Nh4} Bb8 {[%emt 0:02:17]} 27. Rf2 {[%emt 0:00:22]} Qa3 {[%emt 0:01:05]} 28. g5 {[%emt 0:01:45]} hxg5 {[%emt 0:03:40]} 29. fxg5 {[%emt 0:00:06]} Nh7 {[%emt 0:01:18]} 30. h4 {[%emt 0:02:11]} Rce8 {[%emt 0:03:15]} 31. Rcf1 {[%emt 0:31:33]} Ne7 $2 {[%emt 0:01:04]} (31... Ba7 $19 {...Bc8 is the strong threat.} 32. h5 Bc8 (32... Nxg5 33. Bxg5 Qxf3 34. Rxf3 $11) 33. hxg6 fxg6) 32. Nxg7 $1 $15 {[%emt 0:00:00]} Kxg7 {[%emt 0:04:30]} (32... Rd8 $1 $15 33. Nh5 Ba7 34. Nf6+ Nxf6 35. gxf6 Ng6 (35... Bxd4 $2 {is the wrong capture.} 36. fxe7 Qxe3 37. exd8=Q $18)) 33. g6 $1 $11 {[%emt 0:00:00] Dancing on a razor blade.} Qd6 $2 {[%emt 0:01:06][%mdl 8192]} 34. gxh7 $2 {[%emt 0:00:00]} (34. gxf7 $18 Kh8 35. Rg2 (35. fxe8=R Rxe8 36. Rg2 Rg8 $11)) 34... Kh8 $1 $17 {[%emt 0:01:44][%cal Of7f5] [#]} 35. e5 {[%emt 0:00:00]} Qg6+ {[%emt 0:01:01]} (35... Bxf3 36. exd6 Bxd6 37. Rxf3 $17) 36. Bxg6 {[%emt 0:00:00]} Bxf3 {[%emt 0:00:05]} 37. Bb1 {[%emt 0:00:00] [#]} Bh5 {[%emt 0:00:55]} 38. Bg5 {[%emt 0:00:00]} (38. Bh6 $142 Ba7 39. Kh1) 38... Ng6 $4 {[%emt 0:00:30][%mdl 8192]} (38... Nd5 $19 39. Rc1 f6 40. exf6 c3) 39. Rxf7 {[%emt 0:00:00] White mates.} Rxf7 {[%emt 0:00:30]} 40. Rxf7 {[%emt 0:00:00][%cal Rg5f6]} Re6 {[%emt 0:00:30]} 41. Bf5 {[%emt 0:26:55]} Rb6 {[%emt 0:31:20]} 42. e6 {[%emt 0:00:00][%cal Rg5f6]} Bh2+ {[%emt 0:00:21]} 43. Kxh2 {[%emt 0:00:00][%cal Rg5f6]} Rb2+ {[%emt 0:00:07]} 44. Kg1 {[%emt 0:00:00][%cal Rg5f6]} Rg2+ {[%emt 0:00:16]} 45. Kxg2 {[%emt 0:00:00][%cal Rg5f6]} Nxh4+ {[%emt 0:00:09]} 46. Bxh4 {[%emt 0:00:00][%cal Rh4f6]} Bxf7 {[%emt 0:00:03]} 47. Bf6# {[%emt 0:00:00] Weighted Error Value: White=0.45/Black=0.56  Loses game:     	White=1     	Black=1      Missed win:     	White=1     	Black=2      Mistake:       	White=2     	Black=1      Inaccurate:     	White=3     	---        OK:         	White=4     	Black=13     Best:        	White=3     	Black=3      Strong:       	White=2     	Black=1} 1-0